Cogmind - Beta 16 @@@ ROGUE MODE // 2025.12.14 @ 12:17:43 Player: Careless Squirrel Result: Destroyed by Piercing Trap Performance ------------- Evolutions (0) 0 Regions Visited (3) 600 Robots Destroyed (21) 105 Value Destroyed (503) 503 Prototype IDs (1) 20 Alien Tech Used (0) 0 Bonus (0) 0 TOTAL SCORE: 1228 Bonus ------- None Cogmind --------- Core Integrity 0/250 Matter 59/300 Energy 99/100 System Corruption 0% Temperature Cool (0) Movement Core (350) Ox6 Location -10/Subcaves Parts ------- > --- POWER (1) -------- (None) > --- PROPULSION (2) --- (None) > --- UTILITY (2) ------ Large Storage Unit > --- WEAPON (2) ------- (None) > --- INVENTORY (15) --- Ion Engine Light Ion Engine Small Storage Unit EM Pulse Gun EM Pulse Gun Light Assault Rifle Grenade Launcher Peak State ------------ > --- POWER ------------ (None) > --- PROPULSION ------- Aluminum Leg > --- UTILITY ---------- Large Storage Unit Experimental Sensor Array > --- WEAPON ----------- Light Assault Rifle > --- INVENTORY -------- Ion Engine Light Ion Engine EM Pulse Gun EM Pulse Gun Light Assault Rifle Grenade Launcher [Rating: 12] Favorites ----------- Power Ion Engine Engine Ion Engine Propulsion Aluminum Leg Leg Aluminum Leg Utility Large Storage Unit Device Experimental Sensor Array Storage Large Storage Unit Weapon Light Assault Rifle Ballistic Gun Light Assault Rifle Launcher Grenade Launcher Build | -11 -10 -10 -10 ------- Run | Yrd Mat Min Sub Slots Evolved . | . . . . Power . | . . . . Propulsion . | . . . . Utility . | . . . . Weapon . | . . . . Parts Attached 14 | 5 7 2 . Power 3 | 1 2 . . Engine 3 | 1 2 . . Core . | . . . . Reactor . | . . . . Propulsion 3 | 2 1 . . Treads . | . . . . Leg 3 | 2 1 . . Wheel . | . . . . Hover . | . . . . Flight . | . . . . Utility 3 | . 2 1 . Device 1 | . . 1 . Storage 2 | . 2 . . Processor . | . . . . Hackware . | . . . . Protection . | . . . . Artifact . | . . . . Weapon 5 | 2 2 1 . Energy Gun . | . . . . Energy Cannon . | . . . . Ballistic Gun 3 | 2 1 . . Ballistic Cannon . | . . . . Launcher 2 | . 1 1 . Special Weapon . | . . . . Impact Weapon . | . . . . Slashing Weapon . | . . . . Piercing Weapon . | . . . . Special Melee Weapon . | . . . . Unidentified Prototypes 1 | . . 1 . Parts Lost 8 | . 2 3 3 Power 1 | . . 1 . Propulsion 3 | . 1 1 1 Utility 1 | . . . 1 Weapon 3 | . 1 1 1 Highest Loss Streak 3 | . 1 2 3 To Critical Strikes . | . . . . Average Backups 5 | 2 5 6 7 Power 1 | . 2 2 2 Propulsion . | . . . . Utility . | . . . 1 Weapon 3 | 1 2 4 4 Tool/Special . | . . . . Unused Backups 4 | . . . 4 Power 1 | . . . 1 Propulsion . | . . . . Utility . | . . . . Weapon 3 | . . . 3 Tool/Special . | . . . . Average Slot Usage (%) 78 | . 92 69 54 Engine 8 | . 14 5 . Leg 19 | . 26 14 12 Device 1 | . . 1 12 Storage 23 | . 22 26 14 Ballistic Gun 19 | . 26 14 14 Launcher 3 | . 1 5 . Peak Build Rating 12 | 5 7 12 12 Average Rating 6 | 3 6 5 11 On Entrance 6 | . 5 7 12 Avg Prop Armor Cover (%) . | . . . . Naked Turns . | . . . . Heaviest Build 35 | 8 35 35 22 Greatest Support 20 | 20 20 10 10 Greatest Overweight (x) 6 | . 3 3 6 Average Overweight (x) 1 | . . 2 2 Largest Inventory Capacity 15 | 5 15 15 15 Average Capacity 13 | 5 13 15 15 Most Carried 8 | 5 7 8 7 Average Carried 5 | 2 5 6 7 Final Capacity 15 | 5 15 15 15 Final Carried 7 | 4 7 7 7 Class Distribution -------------------- 100% | Mutant Dominant Class ---------------- Mutant | -10/Materials Mutant | -10/Mines Mutant | -10/Subcaves Resources | -11 -10 -10 -10 ----------- Run | Yrd Mat Min Sub Matter Collected 387 | 181 132 74 . Remotely . | . . . . Salvage Created 598 | 93 397 108 . Parts 32 | 2 25 5 . Haulers Intercepted . | . . . . Recyclers Shooed . | . . . . Parts Field Recycled . | . . . . Retrieved Matter . | . . . . Parts Self-Destructed . | . . . . Prevented . | . . . . Parts Restored . | . . . . Kills | -11 -10 -10 -10 ------- Run | Yrd Mat Min Sub Combat Hostiles Destroyed 14 | . 10 4 . Guns 8 | . 6 2 . AOE 6 | . 4 2 . Classes Destroyed 6 | 1 4 1 . Worker 1 | . 1 . . Tunneler 1 | . . 1 . Recycler 4 | 1 3 . . Watcher 1 | . 1 . . Swarmer 5 | . 5 . . Grunt 9 | . 5 4 . Best Kill Streak 9 | 1 9 2 . Combat Bots Only 4 | . 4 2 . Max Kills in Single Turn 2 | 1 2 2 . Gunslinging . | . . . . Exploded 1 | . 1 1 . Melee . | . . . . Uniques/NPCs Destroyed . | . . . . Combat | -11 -10 -10 -10 -------- Run | Yrd Mat Min Sub Hostile Shots Fired 102 | . 66 36 . Missed 25 | . 14 11 . Hits 77 | . 52 25 . Projectile 77 | . 52 25 . Critical Strikes 1 | . . 1 . Damage Taken 1092 | . 488 444 160 Core 261 | . 101 114 46 Absorbed by Shields . | . . . . Core Remaining (%) 100 | 100 . . . Volleys Fired 50 | 3 38 9 . Largest 2 | 2 2 2 . Hottest 50 | 40 50 50 . Shots Fired 94 | 6 71 17 . Gun 78 | 6 62 10 . Cannon . | . . . . Launcher 16 | . 9 7 . Special . | . . . . Kinetic 78 | 6 62 10 . Thermal . | . . . . Explosive 16 | . 9 7 . Electromagnetic . | . . . . Robot Hit Streak 7 | 2 7 7 . Robot Miss Streak 5 | 2 5 3 . Penetration Max . | . . . . Secondary Targets . | . . . . Shots Hit Robots 49 | 3 35 11 . Core Hits 40 | 2 25 13 . Critical Kills . | . . . . Critical Parts Destroyed . | . . . . Critical Strikes . | . . . . Melee Attacks . | . . . . Impact . | . . . . Slashing . | . . . . Piercing . | . . . . Sneak Attacks . | . . . . Combat Hostiles . | . . . . Follow-up Attacks . | . . . . Damage Inflicted 1414 | 37 1071 306 . Guns 432 | 37 311 84 . Cannons . | . . . . Explosions 976 | . 760 216 . Melee . | . . . . Ramming 6 | . . 6 . Kinetic 432 | 37 311 84 . Thermal . | . . . . Explosive 976 | . 760 216 . Electromagnetic . | . . . . Impact . | . . . . Slashing . | . . . . Piercing . | . . . . Highest Corruption . | . . . . Average Corruption . | . . . . Corruption Purged . | . . . . Corruption Blocked . | . . . . Overload Shots . | . . . . Overflow Damage 81 | . 76 5 . Projectiles . | . . . . Explosions 81 | . 76 5 . Melee . | . . . . Knockbacks . | . . . . Impact . | . . . . Kinetic . | . . . . Secondary . | . . . . Self-Inflicted Damage 84 | . . 84 . Shots 4 | . . 4 . Rammed . | . . . . Targets Rammed 5 | . . 5 . Kicked 5 | . . 5 . Crushed . | . . . . Highest Temperature 21 | . 9 21 . Average Temperature 7 | . 4 12 . Received Heat Transfer 333 | . 108 225 . Siege Activations . | . . . . Martial Activations . | . . . . Shielding Activations . | . . . . Robots Disrupted . | . . . . Combat Hostiles . | . . . . Robots Corrupted . | . . . . Combat Hostiles . | . . . . Parts Fried . | . . . . Impact Corruptions . | . . . . Robots Melted . | . . . . Combat Hostiles . | . . . . Parts Melted . | . . . . Heat Transferred . | . . . . Parts Sabotaged . | . . . . Parts Stolen . | . . . . Parts Stripped . | . . . . Power Chain Reactions . | . . . . Alert | -11 -10 -10 -10 ------- Run | Yrd Mat Min Sub Maximum Alert Level 1 | . 1 . . Low Security (%) 66 | 100 27 100 . Level 1 33 | . 72 . . Level 2 . | . . . . Level 3 . | . . . . Level 4 . | . . . . Level 5 . | . . . . High Security . | . . . . Max Security . | . . . . Peak Influence 314 | 5 314 151 . Initial 79 | . . 79 . Average 129 | . 206 70 . Influence Increases 601 | 5 434 162 . Destroy 0b10 Robot/C 280 | . 200 80 . Destroy 0b10 Robot/NC 35 | 5 25 5 . Destroy Leader 62 | . 42 20 . Disable Machine 90 | . 75 15 . Destroy Structure 89 | . 47 42 . Lose Combat Pursuer 45 | . 45 . . Influence Decreases 601 | 5 230 366 . Entered New Map 125 | . . 125 . Time Decay 426 | 5 210 211 . Lost Part 50 | . 20 30 . Squads Dispatched 1 | . 1 . . Investigation . | . . . . Extermination . | . . . . Reinforcement 1 | . 1 . . Assault . | . . . . Garrison . | . . . . Intercept . | . . . . Searches Triggered . | . . . . Construction Impeded . | . . . . Haulers Reinforced . | . . . . Active Scanning Responses . | . . . . Cargo Convoy Interrupts . | . . . . Stealth | -11 -10 -10 -10 --------- Run | Yrd Mat Min Sub Distress Signals 2 | . 2 . . Communications Jammed . | . . . . Distress Signals . | . . . . Times Spotted 21 | . 17 4 . Peak Tracking Total 5 | . 5 2 . Tactical Retreats 2 | . 2 . . Traps | -11 -10 -10 -10 ------- Run | Yrd Mat Min Sub Traps Triggered 3 | . . . 3 Indirectly . | . . . . Trap Hack Attempts . | . . . . Triggered . | . . . . Disarmed . | . . . . Reprogrammed . | . . . . Reused . | . . . . Traps Extracted . | . . . . Installed . | . . . . Triggered . | . . . . Machines | -11 -10 -10 -10 ---------- Run | Yrd Mat Min Sub Machines Disabled 6 | . 5 1 . Max in Single Turn 3 | . 3 1 . Machines Repaired . | . . . . Machines Dismantled . | . . . . Machines Sabotaged . | . . . . Overloaded Fab Kills . | . . . . Hacking | -11 -10 -10 -10 --------- Run | Yrd Mat Min Sub Machines Accessed . | . . . . Terminals . | . . . . Fabricators . | . . . . Repair Stations . | . . . . Recycling Units . | . . . . Scanalyzers . | . . . . Garrison Access . | . . . . Total Hacks . | . . . . Successful . | . . . . Failed . | . . . . Catastrophic . | . . . . Database Lockouts . | . . . . Manual . | . . . . Terminals . | . . . . Fabricators . | . . . . Repair Stations . | . . . . Recycling Units . | . . . . Scanalyzers . | . . . . Garrison Access . | . . . . Terminal Hacks . | . . . . Fabricator Hacks . | . . . . Repair Station Hacks . | . . . . Recycling Unit Hacks . | . . . . Scanalyzer . | . . . . Garrison Access Hacks . | . . . . Unauthorized Hacks . | . . . . Terminals . | . . . . Fabricators . | . . . . Repair Stations . | . . . . Recycling Units . | . . . . Scanalyzers . | . . . . Garrison Access . | . . . . Data Cores Recovered . | . . . . Used . | . . . . Hacking Detections . | . . . . Full Trace Events . | . . . . Feedback Events . | . . . . Feedback Blocked . | . . . . Robot Schematics Acquired . | . . . . Robots Built . | . . . . Authchips . | . . . . Time . | . . . . Total Robot Build Rating . | . . . . Part Schematics Acquired . | . . . . Parts Built . | . . . . Authchips . | . . . . Time . | . . . . Total Part Build Rating . | . . . . Part Studies Acquired . | . . . . Parts Repaired . | . . . . Time . | . . . . Parts Recycled . | . . . . Recycled Matter . | . . . . Retrieved Matter . | . . . . Retrieved Components . | . . . . Parts Scanalyzed . | . . . . Part Schematics Acquired . | . . . . Parts Damaged . | . . . . Bothacking | -11 -10 -10 -10 ------------ Run | Yrd Mat Min Sub Used RIF Installer . | . . . . Robots Hacked . | . . . . Non-combat . | . . . . Combat . | . . . . Robot Hacks Applied . | . . . . Relay Couplers Released . | . . . . Fabnet Peak Effective % . | . . . . Robots Rewired . | . . . . Allies Hacked . | . . . . Hacks Repelled . | . . . . Allies | -11 -10 -10 -10 -------- Run | Yrd Mat Min Sub Total Allies . | . . . . Largest Group . | . . . . Highest-Rated Group . | . . . . Highest-Rated Ally . | . . . . Total Orders . | . . . . Ally Attacks . | . . . . Total Damage . | . . . . Kills . | . . . . Allies Corrupted . | . . . . Allies Melted . | . . . . Intel | -11 -10 -10 -10 ------- Run | Yrd Mat Min Sub Active Infowar (turns) 137 | . . 54 83 Sensors 137 | . . 54 83 Robot Analysis Total . | . . . . Derelict Logs Recovered . | . . . . Drone Launches . | . . . . Drone Recoveries . | . . . . Exploration | -11 -10 -10 -10 ------------- Run | Yrd Mat Min Sub Turns Passed 1143 | 73 492 490 88 Spaces Moved 439 | 51 197 158 33 Core 15 | 14 . . 1 Treads . | . . . . Legs 424 | 37 197 158 32 Wheels . | . . . . Hover . | . . . . Flight . | . . . . Fastest Speed 50 | 50 120 260 260 Average Speed 214 | 100 181 282 262 Slowest Speed 350 | 120 330 330 350 Overloaded Moves . | . . . . Propulsion Burnouts . | . . . . Robots Hopped . | . . . . Potential Cave-ins . | . . . . Cave-ins Triggered . | . . . . Exploration Rate (%) 26 | 4 43 54 4 Regions Visited 3 Branch Regions 2 Pre-discovered Areas . | . . . . Known Exits Taken . | . . . . Unknown Exits Taken 3 | 1 1 1 . Scrap Searched . | . . . . Spaces Dug . | . . . . Terrain Destroyed 96 | . 49 47 . Melee . | . . . . Projectile . | . . . . AOE 96 | . 49 47 . Terrain Rammed . | . . . . Walls Destroyed . | . . . . Machines Disabled . | . . . . Actions | -11 -10 -10 -10 --------- Run | Yrd Mat Min Sub Total 546 | 67 267 179 33 Wait 15 | . 15 . . Move 436 | 50 196 157 33 Hop . | . . . . Pick Up 19 | 9 8 2 . Fast Attach 1 | . 1 . . Attach 14 | 5 6 3 . Detach 2 | . 1 1 . Swap . | . . . . Drop 4 | . 2 2 . Fire 50 | 3 38 9 . Melee . | . . . . Ram . | . . . . Kick 5 | . . 5 . Crush . | . . . . Escape Stasis . | . . . . Rewire . | . . . . Trap . | . . . . Miscellaneous . | . . . . Route ------- -11/Scrapyard -10/Materials -10/Mines -10/Subcaves History --------- Turn | Location | Event 4 | -11/Scrapyard | Discovered new exit (range 15) 74 | -11/Scrapyard | Entered Materials 309 | -10/Materials | Build established: Mutant 526 | -10/Materials | Discovered new exit (range 15) 566 | -10/Materials | Entered Mines 739 | -10/Mines | Core integrity fell below 50% 776 | -10/Mines | Core integrity fell below 20% 995 | -10/Mines | Found a damaged Exp. Sensor Array with a note attached 1000 | -10/Mines | Found Prototype Device 1002 | -10/Mines | Identified Exp. Sensor Array 1030 | -10/Mines | Discovered new exit (range 10) 1033 | -10/Mines | Found a hidden stash of uninstalled traps 1056 | -10/Mines | Entered Subcaves 1130 | -10/Subcaves | Shifting Twisted Machinery released Sub. Power Source 1144 | -10/Subcaves | Destroyed by Piercing Trap Last Messages --------------- 01040_ K-01 Serf collects debris. LOCATION=UNKNOWN AMBIENT_HEAT=-10 GOAL=ESCAPE Sub. Power Source falls loose from the Twisted Machinery. 01132_ Triggered Piercing Trap. 01132_ Spikes shoot up from the floor. 01132_ Critical hit (Impale). 01139_ Triggered Piercing Trap. 01139_ Spikes shoot up from the floor. 01139_ Critical hit (Impale). 01139_ Aluminum Leg destroyed. 01139_ Critical hit (Impale). 01139_ Exp. Sensor Array destroyed. 01144_ Triggered Piercing Trap. 01144_ Spikes shoot up from the floor. 01144_ Critical hit (Impale). 01144_ Lgt. Assault Rifle destroyed. 01144_ Critical hit (Impale). Map ----- +----------------------------------------------------+ | ?????????????????????????????????????????????????? | | ?????????????????????????????????????????????????? | | ?????????????????????????????????????????????????? | | ?????????????????????????????????????????????????? | | ?????????????????????????????????????????????????? | | ?????????????????????????????????????????????????? | | ?????????????????????????????????????????????????? | | ?????????????????????????????????????????????????? | | ?????????????????????????????????????????????????? | | ?????????????????????????????????????????????????? | | ??????????????????????? ?????????????????????????? | | ????????????????????? ?????????????????????????? | | ?????????????????? ?????????????????????????? | | ???????????????? #????????????????????????? | | ????????????????? ????????????????????????? | | ?????????????????? ????????????????????????? | | ?????????????????? ####????????????????????? | | ??????????????????? ?????????????????????? | | ???????????????????? ?????????????????????? | | ????????????????????? ??????????????????????? | | ????????????????????? ??????????????????????? | | ?????????????????????? ##?????????????????????? | | ??########????????????? ##????????????????????? | | ### ## #########?????# "*##???????????????????? | | ## ## ## ####### "" ????????????????????? | | ## ##^ @# #????????????????????? | | # ## # # #??????????????????? | | ####### ^ #??????????????? | | #?????#### ## ^ ## #???????????? | | #???????###### ####???? "" ??????????? | | ##????????????###???????????????????????? | | ## ##???????????????????????????????????????? | | #########????????????????????????????????????????? | | ?????????????????????????????????????????????????? | | ?????????????????????????????????????????????????? | | ?????????????????????????????????????????????????? | | ?????????????????????????????????????????????????? | | ?????????????????????????????????????????????????? | | ?????????????????????????????????????????????????? | | ?????????????????????????????????????????????????? | | ?????????????????????????????????????????????????? | | ?????????????????????????????????????????????????? | | ?????????????????????????????????????????????????? | | ?????????????????????????????????????????????????? | | ?????????????????????????????????????????????????? | | ?????????????????????????????????????????????????? | | ?????????????????????????????????????????????????? | | | | | | | +----------------------------------------------------+ Best States ------------- Heat Dissipation 25 Energy Generation 10 Energy Capacity 250 Matter Stores 219 Matter Capacity 300 Sight Range 16 Robot Scan Range 20 Terrain Scan Density 10 Evasion (%) 55 Item Schematics ----------------- None Robot Schematics ------------------ None Fabricated ------------ Nothing Repaired ---------- Nothing Studied --------- None Alien Tech Used ----------------- None Achievements -------------- None Challenges ------------ None Game ------ Seed TargetGuidedCleaver Manual? 0 Play Time 00:07:48 Cumulative 5.6 hours Start 2025.12.14 @ 12:10:16 End 2025.12.14 @ 12:17:43 Sessions 1 Manual Loads 0 Difficulty Rogue Special Mode None Game No. 15 Rogue 15 Adventurer 0 Explorer 0 Win Type - Total 0 Types 0/0/0/0/0/0/0/0/0/0 Lore% 2 Gallery% 11 Achievement% 9 Wizard Run 0 Options --------- Layout 1 ASCII 0 Keyboard 0 Movement Mouse Keybinds 0 Fullscreen 1 Font 24/Smallcaps Map View 50x35 Zoom Use 0% Tactical HUD 1 Map Filters NONE Filters NONE Steam 1 RUN: 2e05454f-4029-4268-a830-4e7a96f697dd